[Event "CCT Airthings Masters Play-In 2023"]
[Site "Online"]
[Date "2023.02.03"]
[Round "4"]
[White "Cueva Jumbo, Eduardo"]
[Black "Nakamura, Hikaru"]
[Result "0-1"]
[ECO "A07"]
[WhiteElo "1954"]
[BlackElo "2768"]
[Annotator "TA"]
[PlyCount "164"]
[EventDate "2023.02.03"]
[EventType "swiss"]
[EventCountry "NET"]
[SourceTitle "playchess.com"]
[Source "ChessBase"]
[SourceQuality "1"]
[TimeControl "600+2"]

{[%evp 14,164,14,7,19,4,6,-9,-20,-6,-8,0,-9,-15,-37,-40,57,60,64,52,89,76,106,77,99,101,99,100,100,100,114,103,100,91,91,80,91,95,110,110,110,110,110,110,110,0,110,110,110,79,117,85,85,85,85,85,85,85,104,85,97,85,87,0,48,48,48,48,48,47,47,43,52,27,56,11,68,67,171,129,173,174,239,194,206,190,217,200,217,205,214,214,436,201,204,196,383,-39,-70,-94,-111,-117,-100,-257,-88,-346,-99,-555,-547,-525,-516,-789,-789,-784,-768,-684,-681,-853,-749,-975,-379,-377,-384,-511,-451,-433,-446,-395,-247,-256,-183,-177,-123,-409,-168,-382,-374,-369,-364,-341,-304,-275,-179,-416,-339,-327,-69,-391,-356,-982,-898,-29982,-29983]} 1. Nf3 {[%emt 0:01:11]} d5 {[%emt 0:01:02]} 2. g3 {[%emt 0:00:05]} c5 {[%emt 0:00:02]} 3. Bg2 {[%emt 0:00:01]} Nf6 {[%emt 0:00:01]} 4. O-O {[%emt 0:00:04]} g6 {[%emt 0:00:00]} 5. c4 {[%emt 0:00:28]} d4 {[%emt 0:00:13]} 6. b4 {[%emt 0:00:02]} Bg7 {[%emt 0:00:01]} 7. Bb2 {[%emt 0:00:21]} O-O {[%emt 0:00:04]} 8. d3 {[%emt 0:00:03]} Nc6 {[%emt 0:00:01] A07: Réti Opening: New York and Capablanca Systems.} 9. b5 {[%emt 0:00:01]} Na5 {[%emt 0:00:05] [#]} 10. e3 $146 {[%emt 0:00:38]} ({Predecessor:} 10. Nbd2 a6 11. a4 Bf5 12. Qc2 Qd6 13. Rfe1 e5 14. Nh4 Be6 15. e3 {1-0 Kruse,H (2512)-Markus,R (2231) FICGS W-ch qf1 email 2016 (7)}) 10... dxe3 {[%emt 0:00:12] The position is equal.} (10... Bg4 11. exd4 Nd7 12. h3 Bxf3 13. Qxf3 $14) 11. fxe3 {[%emt 0:00:01][%cal Bf2e3,Be3e4,Be4e5][%mdl 32]} Bf5 {[%emt 0:00:07]} 12. e4 $1 {[%emt 0:00:25]} Bg4 {[%emt 0:00:02]} 13. e5 {[%emt 0:00:05]} Nd7 {[%emt 0:00:34][%cal Od7e5] [#] ...Nxe5! would be deadly.} 14. Qe2 {[%emt 0:00:07]} Qc7 {[%emt 0:00:02]} (14... a6 $15) 15. Nbd2 $14 {[%emt 0:00:07]} a6 {[%emt 0:00:06]} 16. a4 {[%emt 0:00:23]} Rad8 {[%emt 0:00:14]} 17. Rfe1 {[%emt 0:00:49]} e6 {[%emt 0:00:24]} 18. Bc3 {[%emt 0:00:06]} b6 {[%emt 0:00:13]} 19. Qe3 {[%emt 0:00:10]} (19. bxa6 $6 Nc6 $11) 19... Bxf3 {[%emt 0:00:10]} 20. Bxf3 {[%emt 0:00:06]} axb5 {[%emt 0:00:13] Black is weak on the light squares} 21. axb5 {[%emt 0:00:01]} Rfe8 {[%emt 0:01:02]} 22. Rab1 {[%emt 0:01:04]} f5 {[%emt 0:00:41]} 23. Bg2 {[%emt 0:00:34]} h6 {[%emt 0:00:09]} 24. h4 {[%emt 0:00:02]} Re7 {[%emt 0:00:07]} 25. Nf3 {[%emt 0:00:01]} Nb7 {[%emt 0:00:03]} 26. Ra1 {[%emt 0:00:02]} Na5 {[%emt 0:00:07]} 27. Ra3 {[%emt 0:00:07]} Nf8 {[%emt 0:00:09]} 28. Rb1 {[%emt 0:00:14]} Nd7 {[%emt 0:00:04]} 29. Re1 {[%emt 0:00:16]} (29. Rba1 $16) 29... Ree8 {[%emt 0:00:14]} (29... Nf8 $1 $11 {keeps the balance.}) 30. Qe2 $16 {[%emt 0:00:03]} Ra8 {[%emt 0:00:13]} 31. Kh2 {[%emt 0:00:13]} Ra7 {[%emt 0:00:01]} 32. Rea1 {[%emt 0:00:15]} Rd8 {[%emt 0:00:08]} 33. R1a2 {[%emt 0:00:20]} Kh7 {[%emt 0:00:04]} 34. Ra4 {[%emt 0:00:18]} Qb8 {[%emt 0:00:05]} 35. R2a3 {[%emt 0:00:17]} Rf8 {[%emt 0:00:27]} 36. Kh1 {[%emt 0:00:21]} Qc7 {[%emt 0:00:07]} 37. Kg1 {[%emt 0:00:04]} Rfa8 {[%emt 0:00:37]} 38. Kh1 {[%emt 0:00:14]} (38. Qb2 $16) 38... Nc6 {[%emt 0:00:56]} 39. Rxa7 $14 {[%emt 0:00:18]} Rxa7 {[%emt 0:00:00]} 40. Rxa7 {[%emt 0:00:01]} Nxa7 {[%emt 0:00:00]} 41. Bh3 {[%emt 0:00:33]} Nc8 {[%emt 0:00:05]} 42. g4 {[%emt 0:00:02]} Ne7 {[%emt 0:00:11]} 43. h5 {[%emt 0:00:02]} Nf8 {[%emt 0:00:00]} 44. Nh4 {[%emt 0:00:16]} f4 {[%emt 0:01:24]} (44... Kg8 $11) 45. Qe4 {[%emt 0:00:05]} Qa7 {[%emt 0:00:07]} ({Black should play} 45... Kg8 $1 $14) 46. Qxf4 {[%emt 0:00:28]} Qa3 {[%emt 0:00:08]} 47. Qd2 {[%emt 0:00:01]} g5 {[%emt 0:00:11]} (47... Kg8 $142 48. Kh2 Qb3) 48. Nf3 {[%emt 0:00:03]} Nd7 {[%emt 0:00:02]} 49. Bg2 {[%emt 0:00:01]} Qb3 {[%emt 0:00:01]} 50. Kh2 {[%emt 0:00:01]} Qb1 {[%emt 0:00:02]} 51. Kh3 {[%emt 0:00:02]} Kh8 {[%emt 0:00:03]} 52. d4 {[%emt 0:00:03]} cxd4 {[%emt 0:00:06]} (52... Qb3 53. Bf1 cxd4 54. Qxd4 Nc5) 53. Bxd4 {[%emt 0:00:00]} (53. Qxd4 $142 Nc5 54. Qd8+ Ng8 55. Qxb6) 53... Qb3 $18 {[%emt 0:00:13]} 54. Qc3 {[%emt 0:00:03]} Qa2 {[%emt 0:00:04]} (54... Qxc3 {might work better.} 55. Bxc3 Nc8) 55. Qe3 $2 {[%emt 0:00:01]} ({White should try} 55. Nd2 $18) 55... Qxc4 $15 {[%emt 0:00:02]} 56. Qe4 {[%emt 0:00:04]} (56. Bxb6 $2 Nd5 57. Nd2 Nxe3 $19) 56... Nd5 {[%emt 0:00:04]} 57. Kh2 {[%emt 0:00:02]} Qxb5 {[%emt 0:00:03] Black is more active.} ({Reject} 57... Qa2 $6 58. Kg3 $11) 58. Qg6 $2 {[%emt 0:00:03]} (58. Qc2 $17 {is a better defense.}) 58... Nf8 $2 {[%emt 0:00:02] Excellent horsemanship.} (58... Qe2 $19 {and Black stays clearly on top. And now ...Nf4 would win.} 59. Qb1 Nf4) 59. Qf7 {[%emt 0:00:01][%mdl 8192]} (59. Qe4 $17 {keeps fighting.}) 59... Nf4 $2 {[%emt 0:00:05]} (59... Qe2 $19 {has better winning chances. Hoping for ...Nf4.} 60. Kg1 Qe4) 60. Bh1 $2 {[%emt 0:00:05][%mdl 8192]} (60. Be3 $17 {was the crucial defense.}) 60... Qe2+ $19 {[%emt 0:00:04]} 61. Kg3 {[%emt 0:00:00]} Qf1 {[%emt 0:00:01]} 62. Kh2 {[%emt 0:00:03]} (62. Be3 $142 Qh3+ 63. Kf2 Nd3+ 64. Ke2) 62... Qh3+ {[%emt 0:00:01]} 63. Kg1 {[%emt 0:00:01]} Qxg4+ {[%emt 0:00:00]} 64. Kf2 {[%emt 0:00:00]} b5 {[%emt 0:00:04][%cal Bb6b5,Bb5b4][%mdl 32]} 65. Qe7 {[%emt 0:00:07]} b4 {[%emt 0:00:01] ...Qf5 is the strong threat.} 66. Qe8 {[%emt 0:00:04]} Qxh5 $2 {[%emt 0:00:03]} (66... Nh3+ 67. Kf1 Qf5) 67. Qxh5 {[%emt 0:00:02]} Nxh5 {[%emt 0:00:00]} 68. Ke3 {[%emt 0:00:03]} Nf4 {[%emt 0:00:01]} 69. Nd2 {[%emt 0:00:01]} Nd7 {[%emt 0:00:01] Against Bc5} 70. Nc4 {[%emt 0:00:01]} b3 {[%emt 0:00:00]} 71. Bc6 {[%emt 0:00:01]} Nd5+ {[%emt 0:00:08]} 72. Ke4 {[%emt 0:00:04] [#]} N7b6 {[%emt 0:00:03]} 73. Nb2 $2 {[%emt 0:00:01][%mdl 8192]} (73. Nxb6 $17 Nxb6 74. Kd3 (74. Bxb6 $2 {is the wrong capture.} b2 $19)) 73... g4 {[%emt 0:00:02]} (73... Bf8 $142 74. Bxb6 Nxb6) 74. Bb5 $2 {[%emt 0:00:01]} (74. Be8 {was forced.}) 74... h5 {[%emt 0:00:02]} 75. Be2 {[%emt 0:00:04]} Kh7 {[%emt 0:00:01]} 76. Bd1 {[%emt 0:00:01]} Kg6 {[%emt 0:00:01]} 77. Bxb3 {[%emt 0:00:01]} h4 {[%emt 0:00:01][%cal Bh5h4,Bh4h3][%mdl 32]} 78. Bd1 $2 {[%emt 0:00:01]} (78. Bxb6 Nxb6 79. Bxe6) 78... Kg5 {[%emt 0:00:01]} 79. Nd3 {[%emt 0:00:02]} Nd7 $2 {[%emt 0:00:01]} ({Better is} 79... h3 $19 {aiming for ...h2.} 80. Nf2 h2 81. Bxg4 h1=Q+ {[%mdl 64] Deflection} 82. Nxh1 Kxg4 83. Nf2+ Kg3) 80. Bb2 $2 {[%emt 0:00:02][%mdl 8192]} ({Only move:} 80. Nf2 $1 $15) 80... h3 {[%emt 0:00:03]} 81. Bc1+ $2 {[%emt 0:00:01]} (81. Nf2 Nc5+ 82. Kd4) 81... Kh4 {[%emt 0:00:01]} 82. Nf2 {[%emt 0:00:02]} Nc3+ {[%emt 0:00:05] Weighted Error Value: White=0.52/Black=0.37} 0-1

[Event "CCT Airthings Masters Play-In 2023"]
[Site "Online"]
[Date "2023.02.03"]
[Round "4"]
[White "Chan, Chak Man"]
[Black "Jospem"]
[Result "0-1"]
[ECO "A47"]
[WhiteElo "1862"]
[BlackElo "2616"]
[Annotator "TA"]
[PlyCount "116"]
[EventDate "2023.02.03"]
[EventType "swiss"]
[EventCountry "NET"]
[SourceTitle "playchess.com"]
[Source "ChessBase"]
[SourceQuality "1"]
[TimeControl "600+2"]

{[%evp 9,116,10,22,11,15,20,20,9,10,11,21,21,25,10,21,10,54,52,49,24,60,40,46,20,30,37,72,64,87,45,42,31,74,70,76,51,70,36,69,50,54,42,52,38,68,59,57,53,51,25,25,30,33,10,59,59,59,48,70,38,66,66,83,83,129,72,83,81,81,81,81,81,81,81,88,47,44,-200,-202,-204,-204,-204,-204,-180,-176,-627,-598,-739,-717,-29977,-29978,-29978,-29979,-29979,-29980,-29979,-29980,-29981,-29982,-29977,-29972,-29970,-12837,-29977,-12839,-29985,-29985,-29991,-29989]} 1. d4 {[%emt 0:00:05]} Nf6 {[%emt 0:00:05]} 2. Bf4 {[%emt 0:00:01]} e6 {[%emt 0:00:03]} 3. e3 {[%emt 0:00:01]} b6 {[%emt 0:00:01]} 4. Nf3 {[%emt 0:00:13]} Bb7 {[%emt 0:00:03]} 5. Be2 {[%emt 0:00:07]} Nh5 {[%emt 0:00:08]} 6. Bg5 {[%emt 0:00:05] A47: 1 d4 Nf6 2 Nf3 b6: Torre, London and Colle Systems.} Be7 {[%emt 0:00:02]} 7. Bxe7 {[%emt 0:00:09]} Qxe7 {[%emt 0:00:00]} 8. O-O {[%emt 0:00:03] The position is equal.} O-O {[%emt 0:00:02]} 9. c4 {[%emt 0:00:03]} d6 {[%emt 0:00:02]} 10. Nc3 {[%emt 0:00:01]} Nd7 {[%emt 0:00:01]} 11. Re1 {[%emt 0:00:20]} Nhf6 {[%emt 0:00:30]} 12. Bd3 {[%emt 0:00:08] [#]} h6 $146 {[%emt 0:00:03]} ({Predecessor:} 12... c5) 13. e4 {[%emt 0:00:02]} e5 {[%emt 0:00:01]} 14. Nd5 {[%emt 0:00:05]} Qd8 {[%emt 0:00:01]} 15. Bc2 {[%emt 0:00:06]} Re8 {[%emt 0:02:03]} 16. Qd2 {[%emt 0:00:05]} c6 {[%emt 0:00:07]} 17. Ne3 {[%emt 0:01:11]} g6 {[%emt 0:00:12] Prevents Nf5} 18. Rad1 {[%emt 0:00:30]} Qe7 {[%emt 0:00:03]} 19. h3 {[%emt 0:01:54][%cal Oc4c5]} Rad8 {[%emt 0:00:24]} 20. d5 {[%emt 0:00:01]} c5 {[%emt 0:01:24]} 21. a3 {[%emt 0:00:03]} Rc8 {[%emt 0:00:18]} 22. b4 {[%emt 0:00:16]} Rc7 {[%emt 0:00:07]} 23. Rb1 {[%emt 0:00:32]} Ra8 {[%emt 0:00:04]} 24. Rec1 {[%emt 0:01:20]} Bc8 {[%emt 0:00:22]} 25. Bd3 {[%emt 0:00:33]} Nf8 {[%emt 0:00:12]} 26. Rb2 {[%emt 0:00:48]} Kh7 {[%emt 0:00:20]} 27. Rcb1 {[%emt 0:00:02]} Nh5 {[%emt 0:00:45]} 28. Bc2 {[%emt 0:00:34]} Nf4 {[%emt 0:00:13]} 29. Ba4 {[%emt 0:00:05] Bc6 would be deadly.} Bd7 {[%emt 0:00:05] Wards off Bc6} 30. Bxd7 {[%emt 0:00:06]} Nxd7 {[%emt 0:00:00]} 31. Kh2 {[%emt 0:00:06]} Nf6 {[%emt 0:00:02]} (31... cxb4 $11 {should be considered.} 32. axb4 Rac8) 32. Qc2 $14 {[%emt 0:00:16]} Qd7 {[%emt 0:00:11]} 33. Ng1 {[%emt 0:00:01]} Rac8 {[%emt 0:00:15]} 34. g3 {[%emt 0:00:04]} N4h5 {[%emt 0:00:01]} 35. b5 {[%emt 0:00:36]} Kg7 {[%emt 0:00:31]} 36. a4 {[%emt 0:00:04][%cal Ba3a4,Ba4a5][%mdl 32]} Nh7 {[%emt 0:00:01]} ({Black should play} 36... Qd8) 37. Nf3 {[%emt 0:00:01]} (37. a5 $142) 37... N5f6 {[%emt 0:00:05] [#]} 38. a5 $1 {[%emt 0:00:08]} Ng5 {[%emt 0:00:03]} 39. Nxg5 {[%emt 0:00:02]} hxg5 {[%emt 0:00:00]} 40. g4 {[%emt 0:00:09]} ({Reject} 40. axb6 axb6 41. f3 Rh8 $11) 40... Rh8 {[%emt 0:00:06][%cal Bc8h8,Bh8h4,Bh4h3,Bh3f3][%mdl 32] [#]} 41. Kg2 $1 {[%emt 0:00:02]} bxa5 {[%emt 0:00:31]} 42. Ra1 {[%emt 0:00:02]} Rh4 {[%emt 0:00:00][%cal Of6h5]} 43. Rxa5 $2 {[%emt 0:00:04] [#] This move loses the game for White.} (43. Qc1 $14 {keeps the upper hand.} Kg8 44. Nf5) 43... Nh5 $1 $19 {[%emt 0:00:01][%cal Bf6h5,Bh5f4,Bf4g2][%mdl 608] Back Rank} 44. Kf1 {[%emt 0:00:20]} Nf4 {[%emt 0:00:03]} 45. Ke1 {[%emt 0:00:03]} Rxh3 {[%emt 0:00:02]} ({Stronger than} 45... Nxh3 46. Qd1 $17) 46. Kd2 {[%emt 0:00:00]} Rf3 {[%emt 0:00:08]} 47. Kc3 $2 {[%emt 0:00:01]} (47. Ke1) 47... Qxg4 {[%emt 0:00:07] Strongly threatening ...Nh3.} 48. Rba2 {[%emt 0:00:07]} Ng2 {[%emt 0:00:01]} 49. Rxa7 {[%emt 0:00:02]} Rxa7 {[%emt 0:00:01]} 50. Rxa7 {[%emt 0:00:01]} Nxe3 {[%emt 0:00:00]} 51. fxe3 {[%emt 0:00:01]} Rxe3+ {[%emt 0:00:01] KQR-KQR} 52. Kb2 {[%emt 0:00:01]} Re2 {[%emt 0:00:01]} 53. b6 {[%emt 0:00:01]} Rxc2+ {[%emt 0:00:01]} 54. Kxc2 {[%emt 0:00:00]} Qc8 {[%emt 0:00:08]} 55. Ra5 {[%emt 0:00:05]} g4 {[%emt 0:00:03] ( -> ...Qb7)} 56. Kd2 {[%emt 0:00:02]} g3 {[%emt 0:00:01]} (56... Qd8 $142 57. Rb5 g3 58. Rb1 Qa8 59. Rg1 Qa3 60. Rf1 g2 61. Rd1 Qf3 62. Rb1 Qf2+ 63. Kc3 g1=R 64. Rxg1 Qxg1 65. Kc2 Qg2+ 66. Kb1 Qxe4+ 67. Kc1 Qxc4+ 68. Kb2 Qb4+ 69. Kc2 e4 70. b7 Qxb7 71. Kc1 Qb3 72. Kd2 Qb2+ 73. Kd1 e3 74. Ke1 Qf2+ 75. Kd1 Qd2#) 57. Ke3 {[%emt 0:00:00]} Qg4 {[%emt 0:00:08]} 58. b7 {[%emt 0:00:02]} g2 {[%emt 0:00:01] Weighted Error Value: White=0.65/Black=0.21 (precise)} 0-1

[Event "CCT Airthings Masters Play-In 2023"]
[Site "Online"]
[Date "2023.02.03"]
[Round "5"]
[White "VladimirKramnik"]
[Black "FabianoCaruana"]
[Result "1/2-1/2"]
[ECO "A30"]
[WhiteElo "2812"]
[BlackElo "2749"]
[Annotator "TA"]
[PlyCount "98"]
[EventDate "2023.02.03"]
[EventType "swiss"]
[EventCountry "NET"]
[SourceTitle "playchess.com"]
[Source "ChessBase"]
[SourceQuality "1"]
[TimeControl "600+2"]

{[%evp 10,98,12,13,10,14,6,-7,0,0,3,0,0,0,0,0,0,-10,-19,-28,-26,-29,-20,-24,-17,-40,-35,-36,-36,-36,-36,-35,-38,-45,-41,-45,-38,-61,-63,-61,-61,-64,-64,-64,-66,-65,-61,-87,-87,-91,-67,-72,-69,-70,-70,-66,-67,-82,-80,-79,-79,-114,-122,-120,-87,-113,-85,-85,-70,-72,-73,-85,-94,-118,-27,-27,0,-27,-14,-14,-15,-15,0,0,0,0,0,0,0,0,8]} 1. Nf3 {[%emt 0:00:04]} Nf6 {[%emt 0:00:06]} 2. c4 {[%emt 0:00:03]} c5 {[%emt 0:00:01]} 3. g3 {[%emt 0:00:02]} Nc6 {[%emt 0:00:02]} 4. Bg2 {[%emt 0:00:03]} d5 {[%emt 0:00:07]} 5. cxd5 {[%emt 0:00:03]} Nxd5 {[%emt 0:00:00]} 6. d4 {[%emt 0:00:02]} cxd4 {[%emt 0:00:04] A30: Symmetrical English: Double Fianchetto and Hedgehog.} 7. Nxd4 {[%emt 0:00:01]} Ndb4 {[%emt 0:00:01]} 8. a3 {[%emt 0:00:02][%cal Ba2a3,Ba3b4,Bb4b5][%mdl 32]} Qxd4 {[%emt 0:01:53]} 9. axb4 {[%emt 0:00:01] Threatens to win with Bxc6+.} Qxd1+ {[%emt 0:00:01]} 10. Kxd1 {[%emt 0:00:02] [#]} e5 $146 {[%emt 0:00:05]} ({Predecessor:} 10... Nxb4 11. Nc3 Bf5 12. Bxb7 Rd8+ 13. Bd2 e6 14. Kc1 Bc5 15. Ra4 O-O 16. Be3 Be7 17. Rxa7 {1-0 Van Foreest,J (2678)-Dominguez Perez,L (2754) Zagreb SuperUnited Rapid 2022 (2)}) 11. b5 {[%emt 0:00:40]} Nd4 {[%emt 0:00:02][%cal Oc8g4]} 12. Be3 {[%emt 0:00:15]} Bc5 {[%emt 0:01:07]} 13. Nd2 {[%emt 0:00:39]} O-O {[%emt 0:00:07][%cal Bh8f8,Bf8d8,Bd8d5,Bd5b5][%mdl 32]} 14. Ne4 {[%emt 0:01:20]} Bb6 {[%emt 0:00:13]} 15. Bxd4 {[%emt 0:00:02]} Rd8 {[%emt 0:00:08][%mdl 64] [#] Pin} 16. Kc2 {[%emt 0:00:16]} exd4 {[%emt 0:00:03]} 17. Kd2 {[%emt 0:00:33]} Be6 {[%emt 0:00:10]} 18. Rhc1 {[%emt 0:00:12]} Rd5 {[%emt 0:00:15] Inhibits Nc5.} 19. b4 {[%emt 0:00:42]} Rxb5 {[%emt 0:00:14]} 20. Nc5 {[%emt 0:00:04]} Rxb4 {[%emt 0:02:34] White must now prevent ...Rb2+.} 21. Nxe6 {[%emt 0:00:01] Hoping for Nc7.} fxe6 {[%emt 0:00:01]} 22. Bxb7 {[%emt 0:00:01]} Rf8 {[%emt 0:00:00]} 23. Rc8 {[%emt 0:00:20] [#]} d3 $1 {[%emt 0:00:41] Strongly threatening ...Bd4.} 24. Rxf8+ {[%emt 0:00:36]} Kxf8 {[%emt 0:00:00]} 25. Kxd3 {[%emt 0:00:15]} Bxf2 $15 {[%emt 0:00:02][%mdl 4096] Endgame KRB-KRB} 26. Ba6 {[%emt 0:00:33] Rf1 would be deadly.} Ke7 {[%emt 0:00:23]} 27. Bc4 {[%emt 0:00:09]} Bb6 {[%emt 0:00:03]} 28. Kc3 {[%emt 0:00:24]} a5 {[%emt 0:00:03]} 29. Ra3 {[%emt 0:00:43]} Rb1 {[%emt 0:00:03]} 30. Rb3 {[%emt 0:00:10]} Rc1+ {[%emt 0:00:02]} 31. Kd3 {[%emt 0:00:01]} Rd1+ {[%emt 0:00:02]} 32. Kc2 {[%emt 0:00:09]} Rd6 {[%emt 0:00:02]} 33. Rd3 {[%emt 0:00:20]} Rc6 {[%emt 0:00:34]} 34. Kb3 {[%emt 0:00:02]} Rc5 {[%emt 0:00:02]} 35. Rc3 {[%emt 0:00:42]} Rh5 {[%emt 0:00:51]} 36. h4 {[%emt 0:00:05]} Bd4 {[%emt 0:00:07]} 37. Rd3 {[%emt 0:00:05]} Bc5 {[%emt 0:00:05]} 38. Ka4 {[%emt 0:00:13]} Bf2 {[%emt 0:00:31]} 39. Rf3 {[%emt 0:00:12]} Bd4 {[%emt 0:00:19]} 40. Rf4 {[%emt 0:00:08]} Be5 {[%emt 0:00:11]} 41. Rg4 {[%emt 0:00:01]} Rf5 {[%emt 0:00:03]} (41... Kf7 $17 42. Kb3 g6) 42. Bd3 $11 {[%emt 0:00:11]} Rf1 {[%emt 0:00:01]} 43. Kxa5 {[%emt 0:00:05]} g6 {[%emt 0:00:01]} 44. h5 $1 {[%emt 0:00:04] The position is equal.} gxh5 {[%emt 0:00:01]} 45. Rg5 {[%emt 0:00:01]} Bc7+ {[%emt 0:00:03]} 46. Kb5 {[%emt 0:00:03]} Rg1 {[%emt 0:00:06]} 47. Rxh5 {[%emt 0:00:06]} Rxg3 {[%emt 0:00:02]} 48. Kc6 {[%emt 0:00:02]} Bf4 {[%emt 0:00:01]} 49. Rxh7+ {[%emt 0:00:02]} Kf6 {[%emt 0:00:01] Weighted Error Value: White=0.06 (flawless) /Black=0.07 (flawless)} 1/2-1/2

[Event "CCT Airthings Masters Play-In 2023"]
[Site "Online"]
[Date "2023.02.03"]
[Round "5"]
[White "Nepomniachtchi, Ian"]
[Black "VincentKeymer"]
[Result "1-0"]
[ECO "C86"]
[WhiteElo "2793"]
[BlackElo "2658"]
[Annotator "TA"]
[PlyCount "77"]
[EventDate "2023.02.03"]
[EventType "swiss"]
[EventCountry "NET"]
[SourceTitle "playchess.com"]
[Source "ChessBase"]
[SourceQuality "1"]
[TimeControl "600+2"]

{[%evp 19,77,4,12,12,24,14,18,15,25,21,29,19,22,16,29,0,2,0,16,15,102,52,58,25,25,22,22,27,22,0,158,158,158,158,158,158,158,158,158,158,154,77,77,75,80,76,77,68,68,0,107,86,94,58,283,272,29987,29988,29988,29983]} 1. e4 {[%emt 0:00:03]} e5 {[%emt 0:00:04]} 2. Nf3 {[%emt 0:00:00]} Nc6 {[%emt 0:00:01]} 3. Bb5 {[%emt 0:00:01]} a6 {[%emt 0:00:01]} 4. Ba4 {[%emt 0:00:00]} Nf6 {[%emt 0:00:01]} 5. O-O {[%emt 0:00:00]} Be7 {[%emt 0:00:01]} 6. Qe2 {[%emt 0:00:01]} b5 {[%emt 0:00:12]} 7. Bb3 {[%emt 0:00:01]} d6 {[%emt 0:00:01]} 8. a4 {[%emt 0:00:05]} Bg4 {[%emt 0:00:19]} 9. c3 {[%emt 0:00:09]} O-O {[%emt 0:00:05]} 10. h3 {[%emt 0:00:08]} Bh5 {[%emt 0:00:11]} 11. d3 {[%emt 0:00:18] C86: Closed Ruy Lopez: Worrall Attack.} b4 {[%emt 0:00:30]} 12. a5 {[%emt 0:00:04]} Rb8 {[%emt 0:00:45] [#] And now ...bxc3 would win.} 13. Bc4 $146 {[%emt 0:00:03] The position is equal.} ({Predecessor:} 13. Nbd2 bxc3 14. bxc3 Qc8 15. Rd1 Rd8 16. Bc2 d5 17. Nf1 d4 18. g4 Nxg4 19. Ng3 Nxf2 20. Qxf2 Bxf3 21. Qxf3 Qxh3 {1-0 Benet Morant,D (1974)-Bru Rullo,L (2122) Tarragona Calbet Memorial 2013 (3)}) 13... bxc3 {[%emt 0:00:01]} 14. bxc3 {[%emt 0:00:02]} Nxa5 {[%emt 0:00:03][%mdl 64] [#] Deflection} 15. Rxa5 {[%emt 0:00:14] Threatens to win with Nbd2.} Rxb1 {[%emt 0:00:02]} 16. g4 {[%emt 0:00:08]} Bg6 {[%emt 0:00:31]} 17. Qa2 {[%emt 0:00:05]} Rb8 {[%emt 0:00:18]} 18. Rxa6 {[%emt 0:00:23]} Qc8 {[%emt 0:00:20][%cal Of6g4]} 19. Bg5 {[%emt 0:00:23]} c6 {[%emt 0:01:15]} (19... h6 $11 20. Bxf6 Bxf6) 20. Ra7 {[%emt 0:00:12]} (20. Qa4 $16) 20... Rb7 {[%emt 0:01:21][%cal Od6d5]} 21. Rxb7 {[%emt 0:00:02]} Qxb7 {[%emt 0:00:01]} 22. Rb1 {[%emt 0:00:00]} Qc7 {[%emt 0:01:13][%cal Of6e4]} 23. Qa6 {[%emt 0:00:44] Hoping for Rb7.} d5 {[%emt 0:00:30]} 24. Rb7 {[%emt 0:00:01]} Qd8 {[%emt 0:00:15]} ({Better is} 24... Qd6 $11 25. exd5 e4 26. dxe4 Bxe4) 25. Nxe5 $16 {[%emt 0:00:06]} dxc4 {[%emt 0:00:20]} 26. Nxc6 {[%emt 0:00:03] White is much more active.} Qxd3 {[%emt 0:00:03] ( -> ...Qd1+)} 27. Nxe7+ {[%emt 0:00:03]} Kh8 {[%emt 0:00:00] Black is weak on the dark squares} 28. Nxg6+ {[%emt 0:01:49]} hxg6 {[%emt 0:00:04]} 29. Bxf6 $40 {[%emt 0:00:03][%mdl 128] White attacks with force.} Qxh3 {[%emt 0:01:27]} 30. Be5 {[%emt 0:00:35]} (30. Qd6 $142 Qxg4+ 31. Kh2) 30... Rd8 {[%emt 0:00:02][%cal Rd8d1] [#]} 31. Rb1 {[%emt 0:00:18] Against Rd1+} (31. Rxf7 $2 Rd1#) 31... Qxg4+ {[%emt 0:00:10]} 32. Bg3 {[%emt 0:00:01]} Qxe4 {[%emt 0:00:30]} 33. Qb6 {[%emt 0:00:02]} Rd3 {[%emt 0:00:00]} 34. Kh2 {[%emt 0:00:11]} ({White should try} 34. Ra1 $14) 34... g5 {[%emt 0:00:28]} (34... Rd5 $1 $11 {remains equal.} 35. Kg1 Rh5) 35. Qb8+ {[%emt 0:00:15]} Kh7 {[%emt 0:00:02][%cal Od3d5]} 36. Qe5 {[%emt 0:00:00] Prevents Rd5.} Qg6 {[%emt 0:00:03]} (36... Qf3 $14) 37. Rh1 $18 {[%emt 0:00:09] Kg2+ would kill now.} f6 $2 {[%emt 0:00:04]} (37... Rd8 $18 38. Qc7 Re8 39. Kg2+ Kg8 40. Qxc4 Qf5) 38. Kg2+ {[%emt 0:00:08]} Kg8 {[%emt 0:00:00]} 39. Qe6+ {[%emt 0:00:01] Weighted Error Value: White=0.17 (very precise) /Black=0.53} 1-0